bitfinex-derivatives/quotes_BTCF0:USTF0_20241117
["timestamp","ask_amount","ask_price","bid_price","bid_amount"]
[1731886626754,0.47274755,89701.0,89700.0,0.09697615]
[1731886629066,0.80718755,89701.0,89700.0,0.09697615]
[1731886629268,0.08580761,89680.0,89675.0,0.0052]
[1731886629460,0.13352395,89676.0,89667.0,0.19948022]
[1731886629658,0.1362,89679.0,89665.0,0.19948022]
[1731886629659,0.13353824,89672.0,89665.0,0.19948022]
[1731886629861,0.13353824,89670.0,89663.0,0.56028022]
[1731886630067,0.13353824,89670.0,89663.0,0.3608]
[1731886630271,0.13353824,89671.0,89669.0,0.00013834]
[1731886630473,0.18928924,89671.0,89669.0,0.00013834]
[1731886630660,0.13350189,89670.0,89669.0,0.00013834]
[1731886630969,0.13550189,89670.0,89669.0,0.00013834]
[1731886631167,0.002,89670.0,89669.0,0.00013834]
[1731886631363,0.16405897,89670.0,89669.0,0.00013834]
[1731886631673,0.002,89676.0,89675.0,0.055748]
[1731886631971,0.1362,89692.0,89689.0,0.055739]
[1731886632160,0.1362,89692.0,89690.0,0.3936]
[1731886632965,0.1362,89692.0,89681.0,0.19977386]
[1731886633172,0.08580761,89687.0,89682.0,0.01045756]
[1731886633376,0.08580761,89687.0,89671.0,0.19977386]
[1731886633665,0.08580761,89687.0,89666.0,0.3608]
[1731886633666,0.3608,89682.0,89672.0,0.01045846]
[1731886633888,0.3608,89682.0,89673.0,0.01045846]
[1731886634164,0.3608,89682.0,89666.0,0.3608]
[1731886634165,0.3608,89682.0,89674.0,0.06620646]
[1731886634366,0.3608,89682.0,89675.0,0.01045846]
[1731886634574,0.3608,89682.0,89674.0,0.055748]
[1731886634770,0.16690494,89686.0,89675.0,0.033]
[1731886634958,0.001,89682.0,89675.0,0.033]
[1731886635268,0.001,89682.0,89675.0,0.088748]
[1731886636174,0.001,89682.0,89675.0,0.033]
[1731886636475,0.001,89682.0,89675.0,0.036]
[1731886636668,0.002,89682.0,89675.0,0.036]
[1731886637373,0.002,89682.0,89675.0,0.04]
[1731886638872,0.1362,89681.0,89678.0,0.055746]
[1731886639981,0.1362,89681.0,89678.0,0.057746]
[1731886640274,0.1372,89681.0,89678.0,0.002]
[1731886640567,0.1372,89681.0,89678.0,0.003]
[1731886640568,0.055745,89680.0,89678.0,0.003]
[1731886641176,0.1382,89681.0,89678.0,0.003]
[1731886641380,0.055746,89679.0,89678.0,0.003]
[1731886641871,0.1372,89681.0,89678.0,0.002]
[1731886642062,0.001,89680.0,89678.0,0.003]
[1731886642577,0.001,89679.0,89678.0,0.003]
[1731886642876,0.056746,89679.0,89678.0,0.003]
[1731886643084,0.055746,89679.0,89678.0,0.002]
[1731886643379,0.055746,89679.0,89678.0,0.003]
[1731886643966,0.056746,89679.0,89678.0,0.003]
[1731886644668,0.056746,89679.0,89678.0,0.002]
[1731886644968,0.056746,89679.0,89678.0,0.003]
[1731886644969,0.14355361,89679.0,89678.0,0.003]
[1731886646774,0.31045855,89679.0,89678.0,0.003]
[1731886647074,0.055751,89670.0,89669.0,0.00013834]
[1731886647276,0.66906114,89670.0,89669.0,0.00013834]
[1731886647485,0.55659516,89670.0,89669.0,0.00013834]
[1731886647670,1.0911982,89670.0,89669.0,0.00013834]
[1731886647864,0.89115516,89670.0,89669.0,0.00013834]
[1731886648374,0.89415516,89670.0,89669.0,0.00113834]
[1731886649073,0.05576,89656.0,89646.0,0.0376]
[1731886649264,0.13608,89655.0,89646.0,0.0324]
[1731886650478,0.055762,89652.0,89646.0,0.0324]
[1731886650780,0.055763,89651.0,89645.0,0.00010211]
[1731886650979,0.055766,89647.0,89645.0,0.00010211]
[1731886651680,0.416566,89647.0,89645.0,0.00010211]
[1731886652276,0.419566,89647.0,89645.0,0.00010211]
[1731886652580,0.3658,89647.0,89645.0,0.00010211]
[1731886652978,0.421566,89647.0,89645.0,0.00010211]
[1731886653175,0.418566,89647.0,89645.0,0.00010211]
[1731886653381,0.420566,89647.0,89645.0,0.00010211]
[1731886653773,0.419566,89647.0,89645.0,0.00010211]
[1731886654284,0.3638,89647.0,89645.0,0.00010211]
[1731886654673,0.3618,89647.0,89645.0,0.00010211]
[1731886654883,0.3628,89647.0,89645.0,0.00010211]
[1731886656384,0.002,89647.0,89646.0,0.3608]
[1731886656684,0.13812,89647.0,89646.0,0.3924]
[1731886658280,0.002,89647.0,89646.0,0.72704]
[1731886658785,0.001,89647.0,89646.0,0.72704]
[1731886658990,0.13612,89666.0,89648.0,0.055765]
[1731886659281,0.13612,89666.0,89665.0,0.416554]
[1731886660884,0.13712,89666.0,89665.0,0.416554]
[1731886661670,0.13712,89666.0,89665.0,0.3608]
[1731886662070,0.13712,89666.0,89657.0,0.3911]
[1731886662271,0.08580761,89665.0,89657.0,0.3608]
[1731886662489,0.13712,89666.0,89648.0,0.416565]
[1731886662490,0.05576,89656.0,89648.0,0.416565]
[1731886662676,0.13712,89666.0,89648.0,0.416565]
[1731886662677,0.22292761,89666.0,89650.0,0.01046014]
[1731886662873,0.055756,89663.0,89656.0,0.41656]
[1731886663075,0.13712,89666.0,89664.0,0.055755]
[1731886663278,0.13712,89666.0,89665.0,0.3608]
[1731886663689,0.13712,89666.0,89665.0,0.4232]
[1731886665292,0.13612,89666.0,89665.0,0.4232]
[1731886665487,0.13712,89666.0,89665.0,0.4232]
[1731886666196,0.13712,89666.0,89665.0,0.3911]
[1731886666376,0.13712,89666.0,89656.0,0.3608]
[1731886666377,0.055757,89662.0,89656.0,0.3608]
[1731886666581,0.055758,89659.0,89656.0,0.3608]
[1731886667282,0.22292761,89666.0,89659.0,0.055758]
[1731886667483,0.055756,89663.0,89656.0,0.3608]
[1731886667782,0.055756,89663.0,89656.0,0.3618]
[1731886667783,0.001,89659.0,89656.0,0.3618]
[1731886668276,0.055756,89663.0,89656.0,0.3608]
[1731886668692,0.055758,89660.0,89656.0,0.3608]
[1731886669088,0.001,89659.0,89656.0,0.3628]
[1731886669588,0.001,89659.0,89658.0,0.055759]
[1731886669787,0.16310235,89666.0,89656.0,0.3608]
[1731886670001,0.16310235,89666.0,89660.0,0.055757]
[1731886670802,0.16310235,89666.0,89656.0,0.3638]
[1731886670803,0.055755,89665.0,89656.0,0.3638]
[1731886671011,0.055755,89665.0,89656.0,0.3628]
[1731886672020,0.055755,89665.0,89658.0,0.055758]
[1731886672417,0.001,89659.0,89658.0,0.057758]
[1731886673122,0.055755,89665.0,89658.0,0.055758]
[1731886673613,0.16310235,89666.0,89658.0,0.055758]
[1731886673816,0.16310235,89666.0,89658.0,0.056758]
[1731886674911,0.16310235,89666.0,89658.0,0.055758]
[1731886675915,0.001,89659.0,89658.0,0.057758]
[1731886676715,0.16410235,89666.0,89658.0,0.055758]
[1731886676913,0.16410235,89666.0,89658.0,0.056758]
[1731886676914,0.001,89659.0,89658.0,0.056758]
[1731886678505,0.002,89659.0,89658.0,0.003]
[1731886678713,0.057758,89659.0,89658.0,0.003]
[1731886678916,0.14356561,89659.0,89658.0,0.003]
[1731886680100,0.08680761,89659.0,89656.0,0.3608]
[1731886680285,0.055759,89657.0,89656.0,0.3608]
[1731886680905,0.055762,89653.0,89646.0,0.3608]
[1731886681106,0.08580761,89652.0,89646.0,0.3608]
[1731886681402,0.055765,89647.0,89646.0,0.3608]
[1731886681600,0.191725,89647.0,89646.0,0.3608]
[1731886682698,0.055766,89646.0,89645.0,0.00010211]
[1731886682905,0.151466,89646.0,89645.0,0.00010211]
[1731886683097,0.31810058,89646.0,89645.0,0.00010211]
[1731886683298,0.31810058,89646.0,89625.0,0.25509723]
[1731886683299,0.14994851,89646.0,89625.0,0.055779]
[1731886683615,0.055771,89638.0,89625.0,0.055779]
[1731886683788,0.08580761,89639.0,89622.0,0.19931823]
[1731886683789,0.055772,89636.0,89622.0,0.19931823]
[1731886683989,0.055772,89636.0,89624.0,0.05578]
[1731886684204,0.3608,89637.0,89623.0,0.19931823]
[1731886684391,0.055776,89630.0,89627.0,0.00011761]
[1731886684698,0.13596,89629.0,89627.0,0.00011761]
[1731886684897,0.055777,89628.0,89627.0,0.00011761]
[1731886685599,0.11840079,89628.0,89627.0,0.00011761]
[1731886686098,0.12040079,89628.0,89627.0,0.00211761]
[1731886686601,0.15270079,89628.0,89627.0,0.00211761]
[1731886686897,0.15470079,89628.0,89627.0,0.00311761]
[1731886687203,0.18171923,89628.0,89627.0,0.00311761]
[1731886690392,0.54251923,89628.0,89627.0,0.00211761]
[1731886690794,0.87723923,89628.0,89627.0,0.00211761]
[1731886691199,0.54251923,89628.0,89627.0,0.00211761]
[1731886691399,0.87723923,89628.0,89627.0,0.00211761]
[1731886691604,0.055788,89610.0,89609.0,0.00167383]
[1731886691819,0.63839561,89610.0,89609.0,0.00167383]
[1731886692018,0.05579,89608.0,89607.0,0.00010259]
[1731886692311,0.05579,89608.0,89600.0,0.1]
[1731886692312,0.055794,89601.0,89600.0,0.1]
[1731886692497,0.50240161,89601.0,89600.0,0.0610777]
[1731886692703,0.78140761,89601.0,89576.0,0.0052]
[1731886692999,0.78140761,89601.0,89575.0,0.3608]
[1731886693000,0.08580761,89583.0,89575.0,0.3608]
[1731886693302,0.136,89582.0,89576.0,0.00013318]
[1731886694217,0.136,89582.0,89577.0,0.055809]
[1731886694598,0.136,89582.0,89576.0,0.00013318]
[1731886695511,0.138,89582.0,89576.0,0.00013318]
[1731886695722,0.141,89582.0,89576.0,0.00013318]
[1731886695912,0.13604,89581.0,89576.0,0.00013318]
[1731886697300,0.13904,89581.0,89576.0,0.00013318]
[1731886698007,0.14104,89581.0,89576.0,0.00013318]
[1731886698415,0.196847,89581.0,89576.0,0.00013318]
[1731886699114,0.060807,89581.0,89576.0,0.00013318]
[1731886699305,0.14288,89580.0,89576.0,0.00013318]
[1731886700109,0.14288,89579.0,89578.0,0.055808]
[1731886700418,0.055808,89578.0,89576.0,0.00113318]
[1731886700601,0.08580761,89577.0,89576.0,0.00113318]
[1731886702099,0.08580761,89577.0,89576.0,0.00013318]
[1731886702100,0.23068761,89577.0,89576.0,0.00013318]
[1731886702505,0.14488,89577.0,89576.0,0.00013318]
[1731886702701,0.14788,89577.0,89576.0,0.00113318]
[1731886703609,0.005,89577.0,89576.0,0.00113318]
[1731886703807,0.14788,89577.0,89576.0,0.00113318]
[1731886704708,0.055802,89588.0,89576.0,0.00113318]
[1731886704909,0.02748411,89588.0,89585.0,0.3608]
[1731886705105,0.14288,89587.0,89586.0,0.088103]
[1731886705426,0.0558,89593.0,89586.0,0.119603]
[1731886705608,0.14288,89592.0,89586.0,0.119603]
[1731886705918,0.002,89588.0,89586.0,0.119603]
[1731886706302,0.14488,89587.0,89586.0,0.120603]
[1731886707014,0.14288,89587.0,89586.0,0.120603]
[1731886708015,0.001,89592.0,89586.0,0.0648]
[1731886708222,0.001,89592.0,89587.0,0.055803]
[1731886708223,0.001,89588.0,89587.0,0.055803]
[1731886708616,0.14288,89593.0,89587.0,0.33488]
[1731886708811,0.14288,89593.0,89592.0,0.4166]
[1731886709212,0.055799,89593.0,89592.0,0.3608]
[1731886709921,0.08580761,89597.0,89592.0,0.3608]
[1731886710119,0.14288,89598.0,89596.0,0.055797]
[1731886710507,0.02717975,89605.0,89594.0,0.055798]
[1731886710815,0.08748252,89619.0,89604.0,0.3608]
[1731886711017,0.055785,89615.0,89610.0,0.055788]
[1731886711421,0.055791,89607.0,89605.0,0.122192]
[1731886711820,0.14288,89611.0,89605.0,0.0664]
[1731886712017,0.14288,89611.0,89609.0,0.055789]
[1731886712316,0.055791,89606.0,89605.0,0.0664]
[1731886713017,0.14288,89611.0,89605.0,0.0664]
[1731886713218,0.14288,89611.0,89607.0,0.05579]
[1731886713624,0.14288,89611.0,89605.0,0.0664]
[1731886714022,0.055789,89609.0,89605.0,0.0664]
[1731886714224,0.05579,89607.0,89605.0,0.0332]
[1731886715416,0.199668,89611.0,89605.0,0.0332]
[1731886715617,0.14388,89611.0,89605.0,0.0332]
[1731886715815,0.055789,89610.0,89605.0,0.0332]
[1731886716020,0.14388,89611.0,89605.0,0.0332]
[1731886716232,0.055792,89605.0,89604.0,0.3608]
[1731886716827,0.14159961,89605.0,89604.0,0.3608]
[1731886717331,0.08580761,89605.0,89593.0,0.055799]
[1731886717529,0.055794,89602.0,89593.0,0.055799]
[1731886717723,0.08580761,89605.0,89592.0,0.3608]
[1731886718232,0.11302841,89605.0,89595.0,0.055798]
[1731886718622,0.16982041,89605.0,89595.0,0.055798]
[1731886718922,0.16982041,89605.0,89596.0,0.055797]
[1731886719725,0.16882041,89605.0,89596.0,0.055797]
[1731886719929,0.16982041,89605.0,89596.0,0.055797]
[1731886721832,0.16982041,89605.0,89598.0,0.055796]
[1731886722031,0.11402841,89605.0,89600.0,0.3608]
[1731886722422,0.16982041,89605.0,89600.0,0.3608]
[1731886722833,0.16882041,89605.0,89600.0,0.3608]
[1731886723025,0.0840128,89605.0,89600.0,0.3608]
[1731886723336,0.001,89605.0,89600.0,0.3608]
[1731886723540,0.001,89605.0,89604.0,0.055792]
[1731886724532,0.14288,89606.0,89605.0,0.055792]
[1731886724733,0.14326552,89619.0,89614.0,0.055786]
[1731886724926,0.14288,89618.0,89615.0,0.3608]
[1731886725234,0.14288,89618.0,89615.0,0.416585]
[1731886726529,0.14288,89617.0,89615.0,0.416585]
[1731886727237,0.02924078,89619.0,89618.0,0.055783]
[1731886727439,0.17212078,89619.0,89618.0,0.055783]
[1731886728540,0.17212078,89619.0,89615.0,0.3608]
[1731886728745,0.17212078,89619.0,89616.0,0.055784]
[1731886729042,0.17312078,89619.0,89616.0,0.055784]
[1731886732338,0.03024078,89619.0,89616.0,0.055784]
[1731886732540,0.03024078,89619.0,89617.0,0.055784]
[1731886732541,0.13944,89618.0,89617.0,0.055784]
[1731886732838,0.13944,89618.0,89617.0,0.416584]
[1731886736847,0.14044,89618.0,89617.0,0.416584]
[1731886737742,0.14044,89618.0,89617.0,0.42704869]
[1731886738148,0.001,89618.0,89617.0,0.42704869]
[1731886738851,0.001,89618.0,89617.0,0.416584]
[1731886741655,0.001,89618.0,89617.0,0.61666622]
[1731886742848,0.001,89618.0,89617.0,0.42704833]
[1731886743048,0.00012379,89628.0,89617.0,0.42704833]
[1731886743049,0.00012379,89628.0,89627.0,0.055778]
[1731886743249,0.00012379,89628.0,89627.0,0.52204233]
[1731886743754,0.00012379,89628.0,89627.0,0.511578]
[1731886744441,0.13944,89641.0,89640.0,0.05577]
[1731886744640,0.13944,89641.0,89640.0,0.41657]
[1731886744856,0.195209,89641.0,89640.0,0.41657]
[1731886745154,0.055769,89641.0,89640.0,0.3608]
[1731886745349,0.055769,89641.0,89640.0,0.41657]
[1731886746049,0.055769,89641.0,89640.0,0.42703193]
[1731886746748,0.00012718,89645.0,89640.0,0.37126193]
[1731886746954,0.00012718,89645.0,89644.0,0.055767]
[1731886747447,0.00012718,89645.0,89644.0,0.06622835]
[1731886747651,0.00012718,89645.0,89640.0,0.7216]
[1731886747952,0.14157661,89642.0,89641.0,0.01046156]
[1731886748350,0.055777,89629.0,89628.0,0.3608]
[1731886748543,0.1394,89633.0,89628.0,0.42704018]
[1731886748744,0.1394,89633.0,89628.0,0.416577]
[1731886748943,0.1394,89633.0,89628.0,0.3608]
[1731886749256,0.1394,89633.0,89631.0,0.055775]
[1731886749552,0.13336827,89646.0,89632.0,0.01046257]
[1731886749755,0.0273111,89646.0,89644.0,0.3608]
[1731886749953,0.1394,89651.0,89644.0,0.416567]
[1731886750156,0.1394,89651.0,89644.0,0.4270287]
[1731886750345,0.195163,89651.0,89644.0,0.4270287]
[1731886750551,0.055766,89646.0,89644.0,0.3712617]
[1731886750956,0.055766,89646.0,89644.0,0.3608]
[1731886751747,0.13336827,89649.0,89644.0,0.3608]
[1731886751946,0.02806997,89650.0,89644.0,0.3608]
[1731886752153,0.033,89653.0,89644.0,0.7216]
[1731886752355,0.1394,89649.0,89644.0,0.7216]
[1731886755165,0.1394,89650.0,89644.0,0.7216]
[1731886755459,0.02797682,89653.0,89644.0,0.7216]
[1731886755460,0.13336827,89656.0,89644.0,0.7216]
[1731886755664,0.02233219,89665.0,89644.0,0.7216]
[1731886755665,0.14107359,89659.0,89658.0,0.055759]
[1731886755852,0.14107359,89659.0,89658.0,0.416559]
[1731886756652,0.00167359,89659.0,89658.0,0.416559]
[1731886760578,0.00167359,89659.0,89658.0,0.42701829]
[1731886761175,0.00012141,89660.0,89658.0,0.42701829]
[1731886761371,0.00012141,89660.0,89659.0,0.37125929]
[1731886763579,0.1503518,89675.0,89659.0,0.37125929]
[1731886763785,0.2060998,89675.0,89674.0,0.3608]
[1731886763974,0.0649398,89675.0,89674.0,0.3608]
[1731886764176,0.2060998,89675.0,89674.0,0.3608]
[1731886764575,0.20624302,89675.0,89674.0,0.3608]
[1731886766284,0.15049502,89675.0,89674.0,0.3608]
[1731886768883,0.00014322,89675.0,89674.0,0.3608]
[1731886769089,0.14130322,89675.0,89674.0,0.3608]
[1731886773293,0.00014322,89675.0,89674.0,0.3608]
[1731886773480,0.00014322,89675.0,89674.0,0.7216]
[1731886774385,0.00014322,89675.0,89674.0,0.73205763]
[1731886774780,0.14116,89686.0,89674.0,0.73205763]
[1731886774781,0.055741,89686.0,89674.0,0.73205763]
[1731886774983,0.3608,89694.0,89674.0,0.73205763]
[1731886774984,0.13327747,89691.0,89689.0,0.055739]
[1731886775184,0.055737,89692.0,89689.0,0.055739]
[1731886775378,0.02725521,89692.0,89689.0,0.055739]
[1731886775584,0.055741,89687.0,89685.0,0.3608]
[1731886775779,0.13327747,89693.0,89685.0,0.3608]
[1731886775981,9.045e-05,89692.0,89686.0,0.0001304]
[1731886776905,0.05582845,89692.0,89689.0,0.055739]
[1731886777591,0.055738,89691.0,89686.0,0.0001304]
[1731886778602,0.055738,89691.0,89687.0,0.05574]
[1731886780294,9.045e-05,89692.0,89688.0,0.05574]
[1731886781488,9.045e-05,89692.0,89691.0,0.055738]
[1731886784799,0.05582745,89692.0,89691.0,0.06619392]
[1731886785501,0.05582745,89692.0,89691.0,0.01045592]
[1731886785801,0.055738,89691.0,89687.0,0.05574]
[1731886785986,9.045e-05,89692.0,89688.0,0.06619625]
[1731886786187,0.055739,89690.0,89688.0,0.05574]
[1731886786395,0.055739,89690.0,89689.0,0.01045628]
[1731886786593,0.055739,89690.0,89689.0,0.055739]
[1731886786796,0.055739,89690.0,89689.0,0.06619535]
[1731886787700,9.045e-05,89692.0,89689.0,0.01045635]
[1731886788007,9.045e-05,89692.0,89690.0,0.06619435]
[1731886788300,9.045e-05,89692.0,89686.0,0.02742057]
[1731886788301,0.05574,89688.0,89686.0,0.0001304]
[1731886788502,0.13336792,89692.0,89686.0,0.0001304]
[1731886788708,0.055741,89687.0,89686.0,0.0001304]
[1731886788907,0.055741,89687.0,89686.0,0.01058757]
[1731886789594,0.055741,89687.0,89686.0,0.0001304]
[1731886792212,0.08263508,89687.0,89686.0,0.0001304]
[1731886796114,0.21603046,89687.0,89686.0,0.0001304]
[1731886798617,0.08263508,89687.0,89686.0,0.0001304]
[1731886798907,0.21603046,89687.0,89686.0,0.0001304]
[1731886799918,0.23833943,89687.0,89686.0,0.0001304]
[1731886800211,0.10494405,89687.0,89686.0,0.0001304]
[1731886800913,0.23848798,89687.0,89686.0,0.0001304]
[1731886801114,0.18274698,89687.0,89686.0,0.0001304]
[1731886801341,0.02689408,89687.0,89686.0,0.01058759]
[1731886801502,0.13354393,89689.0,89686.0,0.01058763]
[1731886801701,0.13354393,89691.0,89687.0,0.01045723]
[1731886801998,9.045e-05,89692.0,89688.0,0.01045723]
[1731886802198,9.045e-05,89692.0,89690.0,0.055738]
[1731886802414,9.045e-05,89692.0,89691.0,0.06619523]
[1731886802912,9.045e-05,89692.0,89691.0,0.15200284]
[1731886803209,9.045e-05,89692.0,89691.0,0.21033104]
[1731886804114,9.045e-05,89692.0,89691.0,0.06619523]
[1731886804813,9.045e-05,89692.0,89691.0,0.26609211]
[1731886805024,9.045e-05,89692.0,89691.0,0.06619523]
[1731886805812,9.045e-05,89692.0,89691.0,0.33320697]
[1731886806705,9.045e-05,89692.0,89691.0,0.06619523]
[1731886807013,9.045e-05,89692.0,89691.0,0.33264024]
[1731886808010,9.045e-05,89692.0,89691.0,0.06619523]
[1731886808619,0.05582745,89692.0,89691.0,0.06619523]
[1731886808908,0.05582745,89692.0,89691.0,0.21029227]
[1731886809509,0.05582745,89692.0,89691.0,0.01045723]
[1731886809716,0.05582745,89692.0,89691.0,0.21029227]
[1731886809913,0.05582745,89692.0,89691.0,0.01045723]
[1731886810213,0.05574,89688.0,89686.0,0.0001304]
[1731886810411,0.13363438,89692.0,89686.0,0.0001304]
[1731886810412,0.13363438,89692.0,89691.0,0.055738]
[1731886810605,9.045e-05,89692.0,89691.0,0.06619441]
[1731886812306,0.23354393,89700.0,89691.0,0.27690142]
[1731886812307,0.1,89700.0,89691.0,0.27690142]
[1731886812611,0.1,89700.0,89699.0,0.416533]
[1731886812809,0.1,89700.0,89699.0,0.42698941]
[1731886813418,0.10008424,89700.0,89699.0,0.42698941]
[1731886814819,0.10008424,89700.0,89699.0,0.69343442]
[1731886815120,0.26954393,89713.0,89712.0,0.055725]
[1731886815121,0.13354393,89713.0,89712.0,0.055725]
[1731886815310,0.055724,89713.0,89712.0,0.416525]
[1731886816407,0.055724,89713.0,89712.0,0.3608]
[1731886816623,0.1361238,89714.0,89712.0,0.416525]
[1731886816813,0.1361238,89714.0,89713.0,0.3608]
[1731886817015,0.1918478,89714.0,89713.0,0.3608]
[1731886817516,0.1361238,89714.0,89713.0,0.3608]
[1731886817722,0.1361238,89714.0,89713.0,0.416524]
[1731886818619,0.1361238,89714.0,89713.0,0.42697755]
[1731886818923,0.0001238,89714.0,89713.0,0.42697755]
[1731886822208,0.0326,89724.0,89713.0,0.42697755]
[1731886822209,0.13354393,89727.0,89713.0,0.45706116]
[1731886822423,0.02230593,89730.0,89726.0,0.3608]
[1731886822424,0.13354393,89728.0,89726.0,0.3608]
[1731886822628,0.07801993,89730.0,89727.0,0.055716]
[1731886823326,9.082e-05,89729.0,89727.0,0.055716]
[1731886823713,9.082e-05,89729.0,89728.0,0.44660761]
[1731886824226,9.082e-05,89729.0,89728.0,0.48945943]
[1731886824616,9.082e-05,89729.0,89728.0,0.54517443]
[1731886826818,9.082e-05,89729.0,89728.0,0.51277443]
[1731886829427,9.082e-05,89729.0,89728.0,0.50232261]
[1731886830932,9.082e-05,89729.0,89728.0,0.416515]
[1731886832334,9.082e-05,89729.0,89718.0,0.3608]
[1731886832636,0.055721,89719.0,89718.0,0.3608]
[1731886833722,0.087521,89719.0,89718.0,0.3608]
[1731886833928,0.0318,89719.0,89710.0,0.3608]
[1731886834416,0.055726,89711.0,89710.0,0.3608]
[1731886835732,0.055731,89702.0,89701.0,0.3608]
[1731886835934,0.055731,89702.0,89690.0,0.416538]
[1731886835935,0.055736,89695.0,89690.0,0.416538]
[1731886836126,0.0327,89694.0,89691.0,0.01045595]
[1731886836534,0.0327,89694.0,89692.0,0.01045595]
[1731886836827,0.0327,89694.0,89690.0,0.416538]
[1731886836828,0.0327,89694.0,89693.0,0.01045595]
[1731886837036,0.0327,89694.0,89690.0,0.416538]
[1731886837229,0.0327,89694.0,89691.0,0.01045628]
[1731886837435,0.0327,89694.0,89692.0,0.01045628]
[1731886837625,0.0327,89694.0,89690.0,0.416538]
[1731886837826,0.0327,89694.0,89691.0,0.01045627]
[1731886838120,0.0327,89694.0,89692.0,0.01045627]
[1731886838322,0.13592,89702.0,89693.0,0.01045627]
[1731886838627,0.13592,89702.0,89701.0,0.055732]
[1731886839023,0.13592,89702.0,89701.0,0.06618765]
[1731886839528,0.191651,89702.0,89701.0,0.01045565]
[1731886840129,0.191651,89702.0,89699.0,0.3608]
[1731886840440,0.055732,89701.0,89700.0,0.01045563]
[1731886841735,0.13592,89702.0,89700.0,0.01045563]
[1731886842041,0.191651,89702.0,89699.0,0.3608]
[1731886842228,0.191651,89702.0,89700.0,0.01045563]
[1731886842428,0.055732,89701.0,89699.0,0.3608]
[1731886842623,0.055732,89701.0,89700.0,0.01045563]
[1731886843235,0.055732,89700.0,89699.0,0.3608]
[1731886852143,0.13592,89702.0,89699.0,0.3608]
[1731886852633,0.13592,89702.0,89699.0,0.416533]
[1731886853749,0.13592,89702.0,89699.0,0.3608]
[1731886854839,0.191652,89702.0,89699.0,0.3608]
[1731886856248,0.13592,89702.0,89699.0,0.3608]
[1731886856549,0.055732,89700.0,89699.0,0.3608]
[1731886857666,0.13592,89702.0,89699.0,0.3608]
[1731886858448,0.13584,89702.0,89699.0,0.3608]
[1731886858840,0.13584,89702.0,89699.0,0.416533]
[1731886859545,0.191571,89702.0,89699.0,0.416533]
[1731886860141,0.191571,89702.0,89699.0,0.3608]
[1731886860142,0.13584,89702.0,89699.0,0.3608]
[1731886860447,0.055732,89700.0,89699.0,0.3608]
[1731886860641,0.055732,89700.0,89699.0,0.37125553]
[1731886861443,0.13584,89702.0,89699.0,0.37125553]
[1731886861747,0.191571,89702.0,89701.0,0.3608]
[1731886862043,0.191571,89702.0,89701.0,0.37125553]
[1731886863437,0.191571,89702.0,89701.0,0.3608]
[1731886864245,0.191571,89702.0,89698.0,0.25544379]
[1731886864450,0.191571,89702.0,89699.0,0.21016644]
[1731886864451,0.35828134,89702.0,89699.0,0.21016644]
[1731886864634,0.35828134,89702.0,89701.0,0.3608]
[1731886867251,0.35828134,89702.0,89700.0,0.19971079]
[1731886867544,0.35828134,89702.0,89701.0,0.3608]
[1731886869051,0.35828134,89702.0,89701.0,0.37125546]
[1731886869442,0.191571,89702.0,89701.0,0.37125546]
[1731886869644,0.191571,89702.0,89701.0,0.57096625]
[1731886869944,0.35875478,89702.0,89701.0,0.57096625]
[1731886870540,0.24577876,89702.0,89701.0,0.3608]
[1731886870949,0.3030234,89702.0,89701.0,0.62669828]
[1731886871146,0.13584,89702.0,89701.0,0.42698749]
[1731886872252,0.13584,89702.0,89701.0,0.62715844]
[1731886872853,0.13584,89702.0,89701.0,0.42698749]
[1731886873247,0.1671834,89704.0,89701.0,0.37125549]
[1731886873443,0.13584,89704.0,89703.0,0.055731]
[1731886873645,0.13584,89704.0,89703.0,0.06618649]
[1731886874945,0.2229114,89708.0,89707.0,0.055728]
[1731886875150,0.2229114,89708.0,89707.0,0.2662955]
[1731886875151,0.13584,89708.0,89707.0,0.2662955]
[1731886875353,0.2229084,89712.0,89707.0,0.01045549]
[1731886875558,0.2229084,89712.0,89711.0,0.3608]
[1731886875758,0.191565,89712.0,89711.0,0.37125437]
[1731886876247,0.21386748,89712.0,89711.0,0.37125437]
[1731886876550,0.191565,89712.0,89711.0,0.37125437]
[1731886876749,0.191565,89712.0,89711.0,0.62705287]
[1731886876944,0.13584,89712.0,89711.0,0.62705287]
[1731886877152,0.13584,89712.0,89711.0,0.62694069]
[1731886877951,0.13584,89712.0,89711.0,0.42698037]
[1731886878553,0.02755971,89714.0,89711.0,0.37125437]
[1731886878762,0.13584,89714.0,89713.0,0.055724]
[1731886878944,0.00167247,89718.0,89717.0,0.055722]
[1731886879146,0.1336027,89721.0,89717.0,0.01045354]
[1731886879456,0.1336027,89721.0,89713.0,0.416524]
[1731886879457,0.13584,89724.0,89723.0,0.055718]
[1731886880349,0.13584,89724.0,89723.0,0.06616975]
[1731886885058,0.13584,89724.0,89723.0,0.055718]
[1731886886767,0.055719,89722.0,89720.0,0.3614]
[1731886887069,0.055719,89722.0,89720.0,0.41652]
[1731886890068,0.13584,89724.0,89723.0,0.055718]
[1731886891564,0.055719,89721.0,89720.0,0.41652]
[1731886891772,0.055719,89721.0,89720.0,0.42697225]
[1731886893175,0.055719,89721.0,89720.0,0.41652]
[1731886893360,0.055719,89721.0,89720.0,0.42697264]
[1731886893763,0.055719,89721.0,89720.0,0.37125264]
[1731886894060,0.055719,89721.0,89720.0,0.3608]
[1731886897260,0.02678636,89722.0,89720.0,0.3608]
[1731886897483,0.087218,89723.0,89720.0,0.3608]
[1731886897863,0.0315,89723.0,89720.0,0.3608]
[1731886898061,0.055719,89721.0,89720.0,0.3608]
[1731886903275,0.1893217,89721.0,89720.0,0.3608]
[1731886904175,0.055719,89721.0,89720.0,0.3608]
[1731886905483,0.055719,89721.0,89720.0,0.41652]
[1731886905675,0.07801777,89721.0,89720.0,0.41652]
[1731886910080,0.2116103,89721.0,89720.0,0.42697297]
[1731886910277,0.07801777,89721.0,89720.0,0.42697297]
[1731886913379,0.07801777,89721.0,89720.0,0.3608]
[1731886913579,0.13438847,89721.0,89720.0,0.3608]
[1731886913791,0.18858568,89721.0,89720.0,0.3608]